bitfinex/quotes_ETHUSD_20250518
["timestamp","ask_amount","ask_price","bid_price","bid_amount"]
[1747545043961,7.55,2493.0,2492.9,2.44268751]
[1747545044260,7.55,2493.0,2492.9,1.67108751]
[1747545045169,7.55,2493.0,2492.9,5.68247986]
[1747545045692,4.01000518,2493.8,2493.4,0.55]
[1747545045996,15.077,2493.6,2493.5,1.15448671]
[1747545047082,4.00985995,2493.9,2493.6,0.55]
[1747545047292,29.512,2493.7,2493.6,0.55]
[1747545047793,29.512,2493.7,2493.5,0.38114909]
[1747545048104,14.438,2493.7,2493.4,0.55]
[1747545048302,15.072,2493.6,2493.4,0.55]
[1747545048879,15.072,2493.6,2493.1,4.4890369]
[1747545048880,15.072,2493.6,2493.2,4.56083756]
[1747545049383,15.072,2493.6,2493.4,0.55]
[1747545049568,14.438,2493.7,2493.4,5.33366124]
[1747545049773,15.069,2493.6,2493.4,0.55]
[1747545050175,15.069,2493.6,2493.5,0.22304611]
[1747545050885,15.069,2493.6,2493.5,0.60370488]
[1747545051895,15.069,2493.6,2493.4,0.55]
[1747545053798,15.069,2493.6,2493.3,0.55]
[1747545054597,15.069,2493.6,2493.4,0.22284142]
[1747545055312,15.069,2493.6,2493.3,0.55]
[1747545056097,15.2023,2493.7,2493.3,4.01073876]
[1747545056299,15.053,2493.6,2493.4,0.55]
[1747545056895,15.053,2493.6,2493.3,4.56074429]
[1747545057101,15.053,2493.6,2493.4,0.22282284]
[1747545057661,15.053,2493.6,2493.4,0.60310208]
[1747545058304,15.053,2493.6,2493.4,0.38027924]
[1747545059107,15.053,2493.6,2493.2,4.56086204]
[1747545059279,15.053,2493.6,2493.2,6.14989761]
[1747545059978,19.06327977,2493.6,2493.3,0.22290209]
[1747545060178,19.06327936,2493.6,2493.3,0.22290209]
[1747545060382,4.01058795,2493.4,2493.3,0.22290209]
[1747545060687,4.76648795,2493.4,2493.3,0.22290209]
[1747545061069,4.01088803,2493.3,2492.9,6.53801978]
[1747545061403,4.01082129,2493.3,2493.0,0.55]
[1747545064484,4.01082129,2493.3,2492.9,0.55]
[1747545064805,4.01091423,2493.2,2492.9,0.55]
[1747545064971,14.984,2493.1,2492.9,0.55]
[1747545066021,14.984,2493.1,2493.0,0.22313723]
[1747545066672,14.984,2493.1,2492.8,0.55]
[1747545066871,14.984,2493.1,2492.8,1.93226103]
[1747545067073,14.984,2493.1,2492.9,0.2231403]
[1747545067612,14.985,2493.6,2493.2,0.55]
[1747545067773,18.99530105,2493.6,2493.2,0.55]
[1747545068103,14.985,2493.6,2493.4,0.55]
[1747545068704,14.985,2493.6,2493.1,4.01096769]
[1747545068909,14.985,2493.6,2493.2,1.03179677]
[1747545069104,18.99529635,2493.6,2493.2,1.03179677]
[1747545069610,14.985,2493.6,2493.2,1.03179677]
[1747545070009,14.985,2493.6,2493.4,0.55]
[1747545070210,18.9953481,2493.6,2493.4,0.55]
[1747545070873,18.9953481,2493.6,2493.3,0.55]
[1747545071398,4.77852768,2493.4,2493.0,1.28501978]
[1747545071686,4.01090967,2493.2,2493.0,0.47801978]
[1747545071885,4.01090967,2493.2,2493.1,0.55]
[1747545072114,18.99790967,2493.2,2493.1,0.55]
[1747545073175,14.987,2493.2,2493.1,0.55]
[1747545073786,14.987,2493.2,2492.8,0.55]
[1747545073985,14.987,2493.2,2492.8,1.13467285]
[1747545074221,18.99791382,2493.2,2492.8,1.13467285]
[1747545074487,18.99791382,2493.2,2492.9,0.22312472]
[1747545075216,18.99791382,2493.2,2492.8,1.13467285]
[1747545076616,18.99791382,2493.2,2492.9,0.22312052]
[1747545077413,14.987,2493.2,2492.9,0.22312052]
[1747545077716,14.987,2493.2,2492.8,1.13467285]
[1747545078115,14.987,2493.2,2492.8,5.14620318]
[1747545078317,14.987,2493.2,2492.9,0.51463816]
[1747545078614,14.987,2493.2,2493.1,0.55]
[1747545080417,14.987,2493.2,2492.9,4.56138409]
[1747545080616,14.973,2493.1,2493.0,0.55]
[1747545080801,14.973,2493.1,2493.0,1.52074307]
[1747545081005,14.973,2493.1,2493.0,1.74382911]
[1747545082515,14.973,2493.1,2493.0,0.77308604]
[1747545083288,14.973,2493.1,2493.0,1.15388213]
[1747545085924,19.80637055,2493.1,2493.0,0.60388213]
[1747545086112,21.22382159,2493.1,2493.0,0.60388213]
[1747545086625,37.85923959,2493.1,2493.0,0.60388213]
[1747545086821,4.01206359,2492.5,2492.3,6.06]
[1747545087124,14.98,2492.4,2492.2,0.47801978]
[1747545087322,18.99223043,2492.4,2492.2,0.47801978]
[1747545087882,18.99223043,2492.4,2492.3,0.55]
[1747545090996,18.99223043,2492.4,2492.0,0.55]
[1747545092131,14.98,2492.4,2492.0,0.55]
[1747545092427,14.98,2492.4,2492.2,0.55]
[1747545092931,18.99224535,2492.4,2492.2,0.55]
[1747545093119,4.01235806,2492.3,2492.2,0.55]
[1747545093439,18.99227361,2492.4,2492.2,0.55]
[1747545094524,18.99227361,2492.4,2492.0,0.55]
[1747545094703,18.99227361,2492.4,2492.0,2.03951397]
[1747545096526,4.01246874,2492.3,2492.0,2.03951397]
[1747545096743,4.01258639,2492.2,2492.0,2.03951397]
[1747545097029,4.01243009,2492.3,2492.0,0.55]
[1747545097225,4.76885372,2492.2,2491.9,0.55]
[1747545097428,0.7563,2492.2,2491.9,0.55]
[1747545100613,0.7563,2492.2,2491.9,0.465]
[1747545100814,19.80363969,2492.4,2491.9,4.01300022]
[1747545101353,4.0128127,2492.1,2491.5,6.53801978]
[1747545101550,4.0129451,2492.0,2491.5,0.47801978]
[1747545101770,14.968,2491.9,2491.6,0.22290459]
[1747545101910,0.8114,2492.2,2491.7,0.7889]
[1747545102247,14.969,2491.9,2491.8,4.01316317]
[1747545102447,14.969,2491.9,2491.7,5.7511424]
[1747545102607,14.969,2491.9,2491.8,0.55]
[1747545105582,4.01260211,2492.2,2491.8,0.55]
[1747545105741,14.969,2491.9,2491.8,0.55]
[1747545109878,14.969,2491.9,2491.8,1.15346057]
[1747545113480,14.955,2491.9,2491.8,1.15346057]
[1747545114779,14.955,2491.9,2491.8,5.16662374]
[1747545115377,14.955,2491.9,2491.8,1.15346057]
[1747545116748,7.479,2491.9,2491.8,5.16659547]
[1747545117482,7.479,2491.9,2491.8,1.15346057]
[1747545124556,11.49200212,2491.9,2491.8,1.15346057]
[1747545125391,7.479,2491.9,2491.8,1.15346057]
[1747545126703,11.49200212,2491.9,2491.8,1.15346057]
[1747545127357,12.31990212,2491.9,2491.8,1.15346057]
[1747545127866,12.31990212,2491.9,2491.8,0.93050423]
[1747545128570,15.7799,2491.9,2491.8,0.93050423]
[1747545129069,14.952,2491.9,2491.8,0.93050423]
[1747545129386,14.952,2491.9,2491.8,1.15430052]
[1747545129787,14.946,2491.9,2491.8,1.15430052]
[1747545129964,0.7883,2492.1,2491.8,1.15430052]
[1747545130169,14.946,2491.9,2491.8,1.15430052]
[1747545131190,0.7883,2492.3,2491.8,1.15430052]
[1747545131394,14.948,2491.9,2491.8,5.16732872]
[1747545132694,14.948,2491.9,2491.8,1.15430052]
[1747545135997,14.946,2491.9,2491.8,1.15430052]
[1747545136163,7.473,2491.9,2491.8,5.16743793]
[1747545136363,7.473,2491.9,2491.8,7.62222116]
[1747545136564,4.84243272,2492.3,2491.8,7.62222116]
[1747545136792,14.946,2492.0,2491.8,5.16743793]
[1747545137204,14.946,2492.0,2491.9,0.77379629]
[1747545137702,4.84243272,2492.3,2491.9,0.77379629]
[1747545137999,14.946,2492.2,2492.0,0.22379629]
[1747545138190,14.946,2492.2,2492.1,0.55]
[1747545138505,7.473,2492.2,2492.1,0.93050423]
[1747545138708,14.946,2492.2,2492.1,0.93050423]
[1747545138890,14.946,2492.2,2492.1,1.15430052]
[1747545139378,7.473,2492.2,2492.1,1.15430052]
[1747545139787,14.946,2492.2,2492.1,5.16693376]
[1747545139979,7.473,2492.2,2492.1,1.94320052]
[1747545140702,7.473,2492.2,2492.1,1.15430052]
[1747545141087,18.45522602,2492.4,2492.1,1.15430052]
[1747545141286,14.946,2492.3,2492.1,1.15430052]
[1747545141793,14.946,2492.3,2492.2,0.22379629]
[1747545141992,14.443,2492.4,2492.3,0.55]
[1747545142198,21.916,2492.4,2492.3,0.55]
[1747545142373,29.389,2492.4,2492.3,0.55]
[1747545142703,33.40119707,2492.4,2492.3,0.77379629]
[1747545143811,4.01238265,2492.3,2492.0,0.55]
[1747545143998,33.40126973,2492.4,2492.0,0.55]
[1747545144380,4.01238412,2492.3,2492.1,0.22351401]
[1747545144815,14.443,2492.4,2492.1,0.22351401]
[1747545145003,7.473,2492.2,2492.0,5.35163414]
[1747545145200,7.473,2492.2,2492.1,4.56268006]
[1747545145506,7.473,2492.2,2492.1,0.55]
[1747545145909,7.473,2492.2,2492.1,0.77346746]
[1747545146614,7.473,2492.2,2492.1,1.15485778]
[1747545147117,11.48551905,2492.2,2492.1,1.15485778]
[1747545147413,7.473,2492.2,2492.1,1.15485778]
[1747545147804,11.48551905,2492.2,2492.1,1.15485778]
[1747545148109,7.473,2492.2,2492.1,1.15485778]
[1747545148311,13.64748791,2492.2,2492.1,0.60485778]
[1747545148510,12.28731905,2492.2,2492.1,0.60485778]
[1747545149016,12.28731905,2492.2,2492.1,0.38139032]
[1747545149894,4.01300212,2491.9,2491.8,0.55]
[1747545150096,4.01302619,2491.9,2491.6,0.55]
[1747545150423,7.472,2491.8,2491.7,0.77354345]
[1747545151404,7.472,2491.8,2491.7,1.15507176]
[1747545153221,14.945,2491.8,2491.7,1.15507176]
[1747545158723,4.8145857,2492.1,2491.7,1.15507176]
[1747545158931,14.946,2491.8,2491.7,1.15507176]
[1747545159993,0.8018,2492.1,2491.7,1.15507176]
[1747545160197,7.473,2492.0,2491.7,5.16836689]
[1747545160394,7.473,2491.9,2491.7,5.16836689]
[1747545160606,7.473,2491.9,2491.8,0.60507176]
[1747545160801,4.01259327,2492.2,2491.9,0.55]
[1747545160996,15.34725933,2492.1,2491.9,0.55]
[1747545161396,0.40125933,2492.1,2491.9,0.55]
[1747545161608,14.946,2492.0,2491.9,0.55]
[1747545162430,14.946,2492.0,2491.9,0.77346346]
[1747545162829,14.946,2492.0,2491.9,1.15499177]
[1747545163627,7.473,2492.0,2491.9,1.15499177]
[1747545163792,14.946,2492.0,2491.9,1.15499177]
[1747545166799,19.72334109,2492.0,2491.9,0.60499177]
[1747545167026,15.7105,2492.0,2491.9,0.60499177]
[1747545167337,15.7105,2492.0,2491.9,0.38152831]
[1747545168837,15.7105,2492.0,2491.6,0.55]
[1747545169433,15.7105,2492.0,2491.6,4.56347174]
[1747545169940,15.7105,2492.0,2491.7,0.22347198]
[1747545170437,15.7105,2492.0,2491.8,0.22347198]
[1747545170617,15.7105,2492.0,2491.8,0.60489528]
[1747545171003,19.72334658,2492.0,2491.8,0.60489528]
[1747545171203,15.7105,2492.0,2491.8,0.3814233]
[1747545171800,15.7105,2492.0,2491.6,0.55]
[1747545172726,15.7105,2492.0,2491.7,0.22353859]
[1747545172929,19.72337472,2492.0,2491.7,0.22353859]
[1747545173407,19.72337472,2492.0,2491.8,0.22353859]
[1747545174021,15.7105,2492.0,2491.8,0.22353859]
[1747545175749,15.7105,2492.0,2491.7,0.22353859]
[1747545176548,15.7105,2492.0,2491.8,0.60520869]
[1747545177046,18.4565906,2492.2,2491.9,0.55]
[1747545177202,14.945,2492.1,2491.9,0.77353859]
[1747545177406,15.2573,2492.2,2491.9,0.77353859]
[1747545177607,14.945,2492.0,2491.9,0.77353859]
[1747545178047,7.473,2492.0,2491.9,0.77353859]
[1747545178251,14.945,2492.0,2491.9,0.77353859]
[1747545178445,15.2573,2492.2,2491.9,0.77353859]
[1747545178613,14.945,2492.1,2491.9,0.77353859]
[1747545178944,14.945,2492.1,2492.0,0.77353859]
[1747545180665,14.945,2492.1,2492.0,1.15529896]
[1747545182352,18.95768006,2492.1,2492.0,1.15529896]
[1747545182535,14.945,2492.1,2492.0,1.15529896]
[1747545183153,19.73578006,2492.1,2492.0,0.60529896]
[1747545183835,21.1532311,2492.1,2492.0,0.38176037]
[1747545184543,0.7781,2491.6,2491.3,0.55]
[1747545184743,14.944,2491.5,2491.2,0.55]
[1747545185945,14.944,2491.5,2491.3,0.38169166]
[1747545186652,14.65348621,2492.2,2491.3,0.38169166]
[1747545186653,4.0131515,2491.9,2491.4,0.7555]
[1747545186876,0.7781,2492.0,2491.4,4.76922374]
[1747545186877,14.942,2491.8,2491.4,4.76922374]
[1747545187354,14.942,2491.8,2491.5,0.38169166]
[1747545188259,18.95524434,2491.8,2491.5,0.38169166]
[1747545188562,18.95524434,2491.8,2491.7,0.55]
[1747545190172,14.942,2491.8,2491.7,0.55]
[1747545190844,14.942,2491.8,2491.7,0.77362023]
[1747545191878,0.7781,2492.0,2491.7,0.77362023]
[1747545192076,7.471,2491.8,2491.7,0.77362023]
[1747545192367,4.01268505,2492.1,2491.7,0.77362023]
[1747545192547,14.942,2491.8,2491.7,0.77362023]
[1747545193152,14.942,2491.8,2491.7,1.15503417]
[1747545194471,7.471,2491.8,2491.7,1.15503417]
[1747545194776,14.942,2491.8,2491.7,1.15503417]
[1747545195773,19.23123587,2492.2,2491.7,1.15503417]
[1747545195980,4.0129884,2492.0,2491.7,1.15503417]
[1747545196270,4.0129884,2492.0,2491.9,0.55]
[1747545196773,11.48375116,2492.1,2491.9,0.55]
[1747545196968,7.471,2492.0,2491.9,0.55]
[1747545197272,4.01317084,2491.8,2491.5,0.55]
[1747545197439,4.78778154,2491.9,2491.5,0.55]
[1747545197645,11.48392645,2492.0,2491.7,0.55]
[1747545198741,11.48392645,2492.0,2491.5,0.55]
[1747545198941,4.01300289,2491.9,2491.5,0.55]
[1747545199353,14.941,2491.8,2491.5,0.55]
[1747545199565,18.95418365,2491.8,2491.5,0.55]
[1747545199877,0.7747,2491.7,2491.4,0.47801978]
[1747545200058,4.78815849,2491.7,2491.4,0.47801978]
[1747545200574,4.78815849,2491.7,2491.5,0.55]
[1747545200943,4.78815849,2491.7,2491.4,0.55]
[1747545201166,4.78815849,2491.7,2491.5,0.60520365]
[1747545201380,0.7747,2491.7,2491.5,0.60520365]
[1747545201681,0.7747,2491.7,2491.6,0.22363847]
[1747545201976,4.78778067,2491.9,2491.7,0.55]
[1747545202158,14.941,2491.8,2491.7,0.55]
[1747545202478,14.941,2491.8,2491.6,0.55]
[1747545202877,4.01290908,2492.0,2491.5,0.55]
[1747545203049,4.78267266,2492.1,2491.5,4.56355412]
[1747545203248,14.941,2492.0,2491.5,4.56355412]
[1747545203448,14.941,2491.9,2491.5,6.16999537]
[1747545204077,14.941,2491.9,2491.6,0.22358104]
[1747545204484,14.941,2491.9,2491.7,0.38147442]
[1747545206371,14.941,2491.9,2491.5,0.55]
[1747545206774,14.941,2491.9,2491.6,0.22359483]
[1747545207684,14.941,2491.9,2491.7,0.22359483]
[1747545207885,18.95400485,2491.9,2491.7,0.22359483]
[1747545208054,14.941,2491.9,2491.7,0.22359483]
[1747545208386,7.471,2491.9,2491.7,0.22359483]
[1747545208586,12.29846317,2491.8,2491.7,0.22359483]
[1747545208769,4.01332423,2491.7,2491.6,0.22359483]
[1747545209686,4.01380749,2491.4,2491.3,0.47801978]
[1747545209859,11.48480749,2491.4,2491.3,0.47801978]
[1747545210589,4.0140164,2491.3,2491.2,0.55]
[1747545210784,11.4840164,2491.3,2491.0,0.55]
[1747545211489,11.4840164,2491.3,2491.2,0.55]
[1747545213078,11.48482975,2491.4,2491.2,0.55]
[1747545213393,7.47,2491.3,2491.2,0.55]
[1747545213558,7.47,2491.3,2491.1,0.55]
[1747545214595,4.01322269,2491.8,2491.3,4.01388845]
[1747545214887,4.01322269,2491.8,2491.4,1.75280034]
[1747545214888,14.942,2491.7,2491.4,1.75280034]
[1747545215057,18.95533793,2491.7,2491.4,1.75280034]
[1747545216492,18.95533793,2491.7,2491.6,0.55]
[1747545216657,14.942,2491.7,2491.6,0.55]
[1747545218708,18.95532423,2491.7,2491.6,0.55]
[1747545220210,14.942,2491.7,2491.6,0.55]
[1747545220808,14.94,2491.7,2491.5,0.55]
[1747545220989,14.94,2491.7,2491.6,0.38103435]
[1747545221513,14.94,2491.7,2491.6,0.60432805]
[1747545221812,0.20949465,2492.0,2491.7,0.55]
[1747545222008,14.94,2491.9,2491.7,0.55]
[1747545222217,14.94,2491.9,2491.7,1.3717]
[1747545224110,14.939,2491.9,2491.7,1.3717]
[1747545231290,18.95200487,2491.9,2491.7,1.3717]
[1747545231497,18.95200487,2491.9,2491.5,1.3685]
[1747545231700,14.939,2491.9,2491.5,2.56052561]
[1747545231998,14.939,2491.9,2491.7,0.55]
[1747545233728,14.939,2491.9,2491.6,0.55]
[1747545234433,14.939,2491.9,2491.7,0.22318404]
[1747545235327,14.939,2491.9,2491.6,0.55]
[1747545236016,14.937,2491.9,2491.6,4.56348406]
[1747545236189,14.937,2491.9,2491.6,6.22826118]
[1747545236527,14.937,2491.9,2491.7,0.2231599]
[1747545237422,14.937,2491.9,2491.6,6.22826118]
[1747545238122,14.937,2491.9,2491.6,2.21477712]
[1747545238493,14.937,2491.9,2491.7,0.38078065]
[1747545239227,4.22245574,2492.0,2491.7,0.38078065]
[1747545239457,14.936,2491.9,2491.7,0.38078065]
[1747545239802,14.936,2491.9,2491.6,6.22819622]
[1747545240220,14.936,2491.9,2491.7,0.22315088]
[1747545240736,18.94901623,2491.9,2491.7,0.22315088]
[1747545240944,18.94901623,2491.9,2491.6,0.55]
[1747545241299,0.20949465,2492.0,2491.6,0.55]
[1747545241502,14.936,2491.9,2491.6,0.55]
[1747545242433,14.936,2491.9,2491.8,0.55]
[1747545242637,7.469,2491.9,2491.8,0.55]
[1747545242802,14.444,2492.2,2491.8,4.56316317]
[1747545242998,14.936,2491.9,2491.8,0.55]
[1747545243211,14.936,2491.9,2491.8,2.85178468]
[1747545243855,14.936,2491.9,2491.8,3.45626728]
[1747545245320,7.469,2491.9,2491.8,3.45626728]
[1747545250369,14.444,2492.2,2491.8,3.45626728]
[1747545250669,21.91,2492.2,2492.1,4.56268006]
[1747545250846,7.466,2492.2,2492.1,4.56268006]
[1747545251462,7.466,2492.2,2492.1,0.55]
[1747545251671,7.466,2492.2,2492.1,0.77337557]
[1747545252277,7.466,2492.2,2492.1,4.78605563]
[1747545252795,7.466,2492.2,2492.1,1.1544826]
[1747545274265,12.28361905,2492.2,2492.1,1.1544826]
[1747545274584,8.2711,2492.2,2492.1,1.1544826]
[1747545276052,14.927,2492.2,2492.1,1.1544826]
[1747545278504,7.466,2492.2,2492.1,1.1544826]
[1747545283422,7.466,2492.2,2492.1,5.16716266]
[1747545284301,7.466,2492.2,2492.1,14.84748275]
[1747545284497,4.79500048,2492.8,2492.2,0.55]
[1747545284702,14.921,2492.7,2492.4,0.55]
[1747545284906,14.921,2492.7,2492.6,0.55]
[1747545285302,14.921,2492.7,2492.6,0.93110703]
[1747545287801,14.921,2492.7,2492.6,1.15459105]
[1747545291327,14.92,2492.7,2492.6,1.15459105]
[1747545294744,18.9317142,2492.7,2492.6,1.15459105]
[1747545295407,18.9317142,2492.7,2492.6,0.55]
[1747545295603,14.92,2492.7,2492.3,0.55]
[1747545295807,18.93184594,2492.7,2492.3,0.55]
[1747545296314,18.93184594,2492.7,2492.4,0.22337391]
[1747545296650,18.93184594,2492.7,2492.6,0.55]
[1747545298243,18.93184594,2492.7,2492.2,0.55]
[1747545298811,0.8219,2492.5,2492.2,0.55]
[1747545299107,0.8219,2492.5,2492.3,0.22338594]
[1747545299572,0.8219,2492.5,2492.4,0.38125979]
[1747545300123,0.8219,2492.5,2492.4,0.60464573]
[1747545300443,14.65243776,2492.9,2492.5,0.55]
[1747545300642,2.5,2493.0,2492.9,4.56139235]
[1747545300851,0.8219,2493.3,2492.9,2.4466805]
[1747545300852,14.919,2493.3,2492.9,2.4466805]
[1747545301030,4.01101816,2493.2,2492.9,0.77338594]
[1747545301370,14.919,2493.3,2492.9,0.77338594]
[1747545301371,18.92980973,2493.3,2492.9,0.77338594]
[1747545301736,18.92980973,2493.3,2493.0,0.22338594]
[1747545301934,18.92980973,2493.3,2493.1,0.55]
[1747545302137,4.3235842,2493.6,2493.1,4.56107055]
[1747545302138,7.461,2493.2,2493.1,4.56107055]
[1747545302328,7.461,2493.2,2493.1,11.57675115]
[1747545302541,7.461,2494.0,2493.7,0.55]
[1747545302855,14.919,2494.0,2493.7,0.55]
[1747545303232,14.919,2494.0,2493.5,4.56033226]
[1747545303556,14.44,2494.4,2493.9,0.55]
[1747545303754,7.461,2494.5,2494.1,0.55]
[1747545303952,0.20931491,2494.4,2494.1,0.55]
[1747545304140,7.461,2494.5,2494.1,0.55]
[1747545304342,11.46984749,2494.5,2494.1,0.55]
[1747545304650,4.00909282,2494.4,2494.1,0.55]
[1747545305266,4.00909423,2494.4,2494.1,0.55]
[1747545305572,11.46986976,2494.5,2494.1,0.55]
[1747545306246,11.46986976,2494.5,2494.1,1.08468824]
[1747545306647,11.46986976,2494.5,2494.1,0.55]
[1747545306843,4.00917407,2494.3,2494.1,0.55]
[1747545307058,4.00930157,2494.2,2494.1,0.55]
[1747545307357,4.00940694,2494.2,2493.8,1.3371]
[1747545307926,4.00946354,2494.1,2493.8,1.3371]
[1747545308321,11.46688225,2494.5,2494.0,0.55]
[1747545308530,7.458,2494.5,2494.3,0.55]
[1747545308756,11.46684559,2494.5,2494.3,0.55]
[1747545309458,7.458,2494.5,2494.3,0.55]
[1747545310066,14.913,2494.5,2494.3,0.55]
[1747545310421,7.458,2494.5,2494.3,0.55]
[1747545310626,7.458,2494.5,2494.3,1.08465371]
[1747545310863,7.458,2494.5,2494.3,0.55]
[1747545312578,0.005,2494.6,2494.3,0.55]
[1747545314255,0.005,2494.6,2494.3,4.55905742]
[1747545314438,0.005,2494.6,2494.3,0.55]
[1747545314634,0.005,2494.6,2494.3,4.55913259]
[1747545314839,0.005,2494.6,2494.5,5.3459194]
[1747545315259,0.005,2494.6,2494.5,1.3371]
[1747545315466,4.00890336,2494.5,2494.3,0.7871]
[1747545315665,4.00890336,2494.5,2494.1,1.3371]
[1747545315959,7.453,2494.5,2494.1,1.3371]
[1747545316140,7.453,2494.5,2494.1,1.9307518]
[1747545316336,7.453,2494.5,2494.3,0.55]
[1747545317559,8.265,2494.5,2493.8,0.8239]
[1747545317773,12.27389365,2494.5,2494.1,0.55]
[1747545318676,12.27382354,2494.5,2493.9,8.0]
[1747545318881,4.009388,2494.2,2493.8,0.8239]
[1747545319177,4.00914084,2494.3,2493.9,0.55]
[1747545319534,4.00930612,2494.2,2493.9,0.55]
[1747545319970,4.00919413,2494.3,2493.9,0.55]
[1747545320323,4.00930793,2494.2,2493.9,0.55]
[1747545321763,4.00960618,2494.1,2493.9,0.55]
[1747545322458,4.00952546,2494.1,2493.7,0.55]
[1747545322679,4.00989878,2493.9,2493.7,0.95102526]
[1747545322877,8.254,2494.0,2493.4,0.7785]
[1747545323028,4.01008692,2493.8,2493.4,0.7785]
[1747545323328,4.01013329,2493.7,2493.5,0.55]
[1747545323528,4.00978387,2493.9,2493.5,0.55]
[1747545323733,4.01008099,2493.8,2493.3,4.56074805]
[1747545323956,4.01008099,2493.8,2493.5,0.55]
[1747545324742,4.01013834,2493.7,2493.5,0.55]
[1747545326970,4.01002101,2493.8,2493.5,0.55]
[1747545328470,4.01013761,2493.7,2493.3,0.55]
[1747545328672,4.01013761,2493.7,2493.3,6.61]
[1747545328963,4.00999205,2493.8,2493.5,0.55]
[1747545329966,4.00985373,2493.9,2493.5,0.55]
[1747545330173,12.26362813,2494.0,2493.5,0.55]
[1747545330535,4.00978387,2493.9,2493.5,0.55]
[1747545330931,14.918,2493.8,2493.5,0.55]
[1747545331473,4.81172089,2494.0,2493.5,2.59443478]
[1747545331650,14.917,2493.9,2493.7,0.55]
[1747545331847,7.453,2493.9,2493.7,0.55]
[1747545332051,7.453,2494.0,2493.9,0.55]
[1747545332238,7.453,2494.1,2493.8,4.55991346]
[1747545332434,14.918,2494.1,2494.0,0.55]
[1747545333176,7.453,2494.1,2494.0,0.55]
[1747545333534,7.453,2494.1,2494.0,0.77254833]
[1747545334351,7.453,2494.1,2494.0,1.15240383]
[1747545337570,7.453,2494.1,2494.0,1.93030383]
[1747545337772,21.884,2494.2,2494.0,3.21602029]
[1747545337973,25.89334891,2494.2,2494.0,3.21602029]
[1747545338159,21.884,2494.2,2494.0,3.21602029]
[1747545338483,25.89330288,2494.2,2494.0,2.43812029]
[1747545338647,25.89330288,2494.2,2494.0,0.9298555]
[1747545339199,21.884,2494.2,2494.0,0.9298555]
[1747545339493,21.884,2494.2,2494.0,0.55]
[1747545339672,29.357,2494.2,2493.9,0.55]
[1747545340044,21.894,2494.2,2494.0,0.22256916]
[1747545340257,29.356,2494.2,2494.0,0.22256916]
[1747545340454,29.356,2494.2,2494.1,0.55]
[1747545341180,14.431,2494.2,2494.1,0.55]
[1747545341370,7.463,2494.4,2494.3,4.55914084]
[1747545341568,7.463,2494.4,2494.3,0.55]
[1747545341769,0.005,2494.6,2494.3,2.49372264]
[1747545341975,0.005,2494.6,2494.5,0.55]
[1747545343486,4.0136587,2494.6,2494.5,0.55]
[1747545344051,0.005,2494.6,2494.5,0.55]
[1747545344399,0.005,2494.6,2494.5,14.61]
[1747545344546,0.005,2494.6,2494.5,21.07879166]
[1747545345066,0.005,2494.6,2494.5,21.30113799]
[1747545345951,0.005,2494.6,2494.5,21.68052012]
[1747545348174,0.005,2494.6,2494.5,15.62052012]
[1747545349282,0.005,2494.6,2494.5,16.0985399]
[1747545349495,0.25256846,2495.0,2494.9,4.55817668]
[1747545349791,0.25256846,2495.0,2494.9,6.22732655]
[1747545349986,0.25256846,2495.0,2494.9,6.44967288]
[1747545350390,0.25256846,2495.0,2494.9,6.82905501]
[1747545352484,0.25256846,2495.0,2494.9,14.82905501]
[1747545354391,0.25256846,2495.0,2494.9,14.60670868]
[1747545355662,0.25256846,2495.0,2494.9,9.786032]
[1747545356682,0.25256846,2495.0,2494.9,0.37938213]
[1747545357098,0.25256846,2495.0,2494.5,2.13339204]
[1747545357254,0.25256846,2495.0,2494.6,8.0]
[1747545357461,0.25256846,2495.0,2494.7,0.55]
[1747545357864,4.26058809,2495.0,2494.7,0.55]
[1747545358181,4.26058695,2495.0,2494.6,0.55]
[1747545358379,4.26058695,2495.0,2494.6,8.55]
[1747545358587,0.25256846,2495.0,2494.6,11.1598609]
[1747545358964,7.517,2494.9,2494.6,11.1598609]
[1747545359298,7.517,2494.9,2494.6,15.16850366]
[1747545359699,7.517,2494.9,2494.6,11.1598609]
[1747545360156,11.52533213,2494.9,2494.6,3.1598609]
[1747545360362,0.7518,2494.8,2494.3,4.00904051]
[1747545360584,5.01242454,2495.0,2494.4,0.37850623]
[1747545360784,14.978,2494.8,2494.5,8.55]
[1747545361003,14.978,2494.8,2494.5,10.24465066]
[1747545361795,14.978,2494.8,2494.5,14.25342577]
[1747545361995,0.25256846,2495.0,2494.7,0.55]
[1747545362200,15.22856846,2495.0,2494.7,0.55]
[1747545362905,15.22856846,2495.0,2494.7,4.55848654]
[1747545363196,7.71356846,2495.0,2494.9,4.55817668]
[1747545363405,0.25256846,2495.0,2494.9,18.61817668]
[1747545363872,0.25256846,2495.0,2494.9,19.59817545]
[1747545365199,0.25256846,2495.0,2494.9,19.97670267]
[1747545365392,0.25256846,2495.0,2494.9,22.61320808]
[1747545368304,0.005,2495.3,2495.2,13.37539477]
[1747545368715,0.005,2495.3,2495.2,13.59719354]
[1747545369082,0.005,2495.3,2495.2,13.97572076]
[1747545369388,15.125,2495.3,2495.2,0.45053018]
[1747545369712,15.128,2495.3,2495.2,0.45053018]
[1747545370008,0.005,2495.3,2495.2,0.45053018]
[1747545370209,15.333,2495.3,2495.2,0.45053018]
[1747545370417,15.331,2495.3,2495.2,0.45053018]
[1747545371214,15.329,2495.3,2495.2,5.00822495]
[1747545371406,7.665,2495.3,2495.2,13.00822495]